lending/lending_fUSD_20241025
["ID","MTS","AMOUNT","RATE_DAILY","PERIOD"]
[340819380,1729876238295,-515.75,0.00062488,120]
[340819381,1729876238305,-3010.28,0.00062488,120]
[340819382,1729876238315,-500.0,0.00062488,120]
[340819383,1729876238325,-611.82234543,0.00062488,120]
[340819384,1729876238335,-500.0,0.00062488,120]
[340819385,1729876238344,-500.0,0.00062488,120]
[340819386,1729876238353,-500.0,0.00062488,120]
[340819387,1729876238363,-735.45,0.00062488,120]
[340819388,1729876238373,-706.84,0.00062488,120]
[340819389,1729876238384,-500.0,0.00062488,120]
[340819390,1729876238393,-600.17,0.00062488,120]
[340819391,1729876238403,-500.0,0.00062488,120]
[340819392,1729876238413,-500.0,0.00062488,120]
[340819393,1729876238422,-4693.58976483,0.00062488,14]
[340819394,1729876238432,-6092.59332951,0.00062488,13]
[340819395,1729876238441,-37548.7181186,0.00062489,14]
[340819396,1729876238451,-36555.5599771,0.00062489,13]
[340819397,1729876238460,-500.0,0.00062489,14]
[340819398,1729876238470,-2051.66,0.00062489,120]
[340819399,1729876238479,-500.0,0.00062489,120]
[340819400,1729876238489,-500.0,0.00062489,120]
[340819401,1729876238498,-500.0,0.00062489,120]
[340819402,1729876238508,-500.0,0.00062489,120]
[340819403,1729876238517,-956.37,0.00062489,120]
[340819404,1729876238526,-559.24,0.00062489,120]
[340819405,1729876238536,-17185.94,0.00062489,120]
[340819406,1729876238545,-500.0,0.00062489,120]
[340819407,1729876238555,-812.69,0.00062489,120]
[340819408,1729876238566,-500.0,0.00062489,120]
[340819409,1729876238575,-500.0,0.00062489,120]
[340819410,1729876238585,-1177.8,0.00062489,120]
[340819411,1729876238596,-500.0,0.00062489,21]
[340819412,1729876238608,-500.0,0.00062489,120]
[340819413,1729876238619,-1375.96,0.00062489,120]
[340819414,1729876238629,-500.0,0.00062489,120]
[340819415,1729876238643,-253.71808288,0.00062489,120]
[340819417,1729876238652,-500.0,0.00062489,120]
[340819419,1729876238661,-606.29,0.00062489,120]
[340819421,1729876238671,-699.36,0.00062489,120]
[340819423,1729876238680,-500.0,0.00062489,120]
[340819424,1729876238690,-500.0,0.00062489,120]
[340819425,1729876238700,-500.0,0.00062489,120]
[340819426,1729876238709,-500.0,0.00062489,120]
[340819427,1729876238718,-500.0,0.00062489,120]
[340819428,1729876238728,-1319.24,0.00062489,120]
[340819429,1729876238737,-49044.74357239,0.0006249,3]
[340819430,1729876238747,-250.0,0.0006249,120]
[340819431,1729876238757,-250.0,0.0006249,120]
[340819432,1729876238768,-250.0,0.0006249,120]
[340819433,1729876238778,-250.0,0.0006249,120]
[340819434,1729876238788,-250.0,0.0006249,120]
[340819435,1729876238799,-250.0,0.0006249,120]
[340819436,1729876238808,-250.0,0.0006249,120]
[340819437,1729876238818,-250.0,0.0006249,120]
[340819438,1729876238829,-250.0,0.0006249,120]
[340819439,1729876238839,-300.339063,0.0006249,120]
[340819440,1729876238848,-127944.45992,0.0006249,13]
[340819441,1729876238858,-17185.94,0.00062491,120]
[340819442,1729876238867,-500.0,0.00062491,120]
[340819443,1729876238877,-812.69,0.00062491,120]
[340819444,1729876238887,-500.0,0.00062491,21]
[340819445,1729876238897,-3010.28,0.00062491,120]
[340819446,1729876238906,-500.0,0.00062491,120]
[340819447,1729876238916,-1375.96,0.00062491,120]
[340819448,1729876238925,-500.0,0.00062491,120]
[340819449,1729876238937,-500.0,0.00062491,120]
[340819450,1729876238950,-500.0,0.00062491,120]
[340819451,1729876238963,-500.0,0.00062491,120]
[340819452,1729876238975,-735.45,0.00062491,120]
[340819453,1729876238989,-706.84,0.00062491,120]
[340819454,1729876239000,-500.0,0.00062491,120]
[340819455,1729876239011,-606.29,0.00062491,120]
[340819456,1729876239023,-600.17,0.00062491,120]
[340819457,1729876239035,-1319.24,0.00062491,120]
[340819458,1729876239046,-12185.186659,0.00062491,13]
[340819459,1729876239058,-24370.373318,0.00062492,13]
[340819460,1729876239070,-2051.66,0.00062492,120]
[340819461,1729876239088,-500.0,0.00062492,120]
[340819462,1729876239099,-500.0,0.00062492,120]
[340819463,1729876239111,-956.37,0.00062492,120]
[340819464,1729876239124,-559.24,0.00062492,120]
[340819465,1729876239137,-1430.01,0.00062492,120]
[340819466,1729876239148,-500.0,0.00062492,120]
[340819467,1729876239159,-1177.8,0.00062492,120]
[340819468,1729876239171,-515.75,0.00062492,120]
[340819469,1729876239182,-699.36,0.00062492,120]
[340819470,1729876239194,-500.0,0.00062493,120]
[340819471,1729876239206,-500.0,0.00062493,120]
[340819472,1729876239218,-500.0,0.00062493,120]
[340819473,1729876239230,-724.03,0.00062493,120]
[340819474,1729876239241,-500.0,0.00062493,120]
[340819475,1729876239253,-500.0,0.00062493,120]
[340819476,1729876239264,-321.14692041,0.00062493,120]
[340819477,1729876239274,-340.78547134,0.00062493,120]
[340819478,1729876239284,-559.45,0.00062493,120]
[340819479,1729876239296,-500.0,0.00062493,120]
[340819480,1729876239306,-500.0,0.00062493,120]
[340819481,1729876239318,-570.97,0.00062493,120]
[340819482,1729876239330,-258.35975358,0.00062493,120]
[340819483,1729876239341,-500.0,0.00062493,120]
[340819484,1729876239352,-500.0,0.00062493,120]
[340819485,1729876239363,-500.0,0.00062493,120]
[340819486,1729876239375,-500.0,0.00062493,120]
[340819487,1729876239388,-500.0,0.00062493,120]
[340819488,1729876239399,-500.0,0.00062493,120]
[340819489,1729876239410,-549.25,0.00062493,120]
[340819490,1729876239423,-500.0,0.00062493,2]
[340819491,1729876239434,-500.0,0.00062493,120]
[340819492,1729876239445,-500.0,0.00062493,55]
[340819493,1729876239455,-500.0,0.00062493,120]
[340819494,1729876239465,-500.0,0.00062493,120]
[340819495,1729876239476,-500.0,0.00062493,120]
[340819496,1729876239487,-500.0,0.00062493,120]
[340819497,1729876239499,-500.0,0.00062493,120]
[340819498,1729876239510,-994.84,0.00062493,120]
[340819499,1729876239522,-692.7,0.00062493,120]
[340819500,1729876239532,-558.0,0.00062493,120]
[340819501,1729876239543,-500.0,0.00062493,120]
[340819502,1729876239555,-500.0,0.00062493,120]
[340819503,1729876239569,-603.72468153,0.00062493,120]
[340819504,1729876239580,-582.02,0.00062493,120]
[340819505,1729876239591,-500.0,0.00062493,120]
[340819506,1729876239602,-579.96,0.00062493,120]
[340819507,1729876239612,-500.0,0.00062493,120]
[340819508,1729876239622,-925.88,0.00062493,120]
[340819509,1729876239633,-500.0,0.00062493,120]
[340819510,1729876239644,-519.16,0.00062493,120]
[340819511,1729876239655,-500.0,0.00062493,120]
[340819512,1729876239666,-833.34,0.00062493,120]
[340819513,1729876239676,-500.0,0.00062493,120]
[340819514,1729876239686,-476.0811765,0.00062493,120]
[340819515,1729876239697,-500.0,0.00062493,120]
[340819516,1729876239708,-500.0,0.00062493,120]
[340819517,1729876239720,-1000.0,0.00062493,120]
[340819518,1729876239731,-1026.05,0.00062493,4]
[340819519,1729876239742,-500.0,0.00062493,7]
[340819520,1729876239754,-500.0,0.00062493,120]
[340819521,1729876239765,-599.19,0.00062493,120]
[340819522,1729876239777,-500.0,0.00062493,120]
[340819523,1729876239788,-500.0,0.00062494,2]
[340819524,1729876239799,-500.0,0.00062494,120]
[340819525,1729876239810,-500.0,0.00062494,120]
[340819526,1729876239821,-179.05231008,0.00062495,120]
[340819527,1729876239833,-500.0,0.00062495,2]
[340819528,1729876239844,-2051.66,0.00062495,120]
[340819529,1729876239855,-500.0,0.00062495,120]
[340819530,1729876239866,-500.0,0.00062495,120]
[340819531,1729876239878,-500.0,0.00062495,120]
[340819532,1729876239891,-500.0,0.00062495,120]
[340819533,1729876239903,-956.37,0.00062495,120]
[340819534,1729876239914,-559.24,0.00062495,120]
[340819535,1729876239924,-1177.8,0.00062495,120]
[340819536,1729876239935,-699.36,0.00062495,120]
[340819538,1729876239946,-200.0,0.00062496,30]
[340819539,1729876239957,-200.0,0.00062496,30]
[340819540,1729876239968,-2051.66,0.00062498,120]
[340819541,1729876239979,-500.0,0.00062498,120]
[340819542,1729876239990,-500.0,0.00062498,120]
[340819543,1729876240001,-500.0,0.00062498,120]
[340819544,1729876240012,-500.0,0.00062498,120]
[340819545,1729876240023,-956.37,0.00062498,120]
[340819546,1729876240034,-559.24,0.00062498,120]
[340819547,1729876240045,-1177.8,0.00062498,120]
[340819548,1729876240056,-699.36,0.00062498,120]
[340819549,1729876240067,-5000.0,0.00062499,120]
[340819550,1729876240078,-5000.0,0.00062499,120]
[340819551,1729876240089,-3278.17814435,0.00062499,120]
[340819552,1729876240100,-5000.0,0.00062499,120]
[340819553,1729876240111,-1000.0,0.00062499,120]
[340819554,1729876240122,-724.03,0.00062499,120]
[340819555,1729876240134,-500.0,0.00062499,120]
[340819556,1729876240143,-2051.66,0.00062499,120]
[340819557,1729876240152,-500.0,0.00062499,120]
[340819558,1729876240162,-500.0,0.00062499,120]
[340819559,1729876240173,-500.0,0.00062499,120]
[340819560,1729876240182,-500.0,0.00062499,120]
[340819561,1729876240192,-570.97,0.00062499,120]
[340819562,1729876240201,-500.0,0.00062499,120]
[340819563,1729876240347,-500.0,0.00062499,120]
[340819564,1729876240362,-500.0,0.00062499,120]
[340819565,1729876240372,-500.0,0.00062499,120]
[340819566,1729876240384,-500.0,0.00062499,120]
[340819567,1729876240394,-500.0,0.00062499,120]
[340819568,1729876240404,-500.0,0.00062499,120]
[340819569,1729876240413,-500.0,0.00062499,120]
[340819570,1729876240423,-549.25,0.00062499,120]
[340819571,1729876240432,-500.0,0.00062499,2]
[340819572,1729876240442,-956.37,0.00062499,120]
[340819573,1729876240452,-500.0,0.00062499,120]
[340819574,1729876240461,-500.0,0.00062499,55]
[340819575,1729876240470,-500.0,0.00062499,120]
[340819576,1729876240480,-500.0,0.00062499,120]
[340819577,1729876240489,-500.0,0.00062499,120]
[340819578,1729876240498,-500.0,0.00062499,120]
[340819579,1729876240509,-500.0,0.00062499,120]
[340819580,1729876240519,-559.24,0.00062499,120]
[340819581,1729876240528,-994.84,0.00062499,120]
[340819582,1729876240537,-1430.01,0.00062499,120]
[340819583,1729876240547,-692.7,0.00062499,120]
[340819584,1729876240558,-17185.94,0.00062499,120]
[340819585,1729876240569,-812.69,0.00062499,120]
[340819586,1729876240578,-558.0,0.00062499,120]
[340819587,1729876240588,-500.0,0.00062499,120]
[340819588,1729876240597,-1177.8,0.00062499,120]
[340819589,1729876240607,-235.45851387,0.00062499,120]
[340819591,1729876240616,-500.0,0.00062499,21]
[340819593,1729876240626,-500.0,0.00062499,120]
[340819594,1729876240638,-515.75,0.00062499,120]
[340819595,1729876240648,-582.02,0.00062499,120]
[340819596,1729876240656,-3010.28,0.00062499,120]
[340819597,1729876240666,-500.0,0.00062499,120]
[340819598,1729876240676,-1375.96,0.00062499,120]
[340819599,1729876240685,-500.0,0.00062499,120]
[340819600,1729876240695,-579.96,0.00062499,120]
[340819601,1729876240704,-500.0,0.00062499,120]
[340819602,1729876240714,-500.0,0.00062499,120]
[340819603,1729876240724,-925.88,0.00062499,120]
[340819604,1729876240734,-500.0,0.00062499,120]
[340819605,1729876240743,-735.45,0.00062499,120]
[340819606,1729876240754,-706.84,0.00062499,120]
[340819607,1729876240763,-500.0,0.00062499,120]
[340819608,1729876240773,-500.0,0.00062499,120]
[340819609,1729876240782,-606.29,0.00062499,120]
[340819610,1729876240792,-519.16,0.00062499,120]
[340819611,1729876240801,-699.36,0.00062499,120]
[340819612,1729876240810,-600.17,0.00062499,120]
[340819613,1729876240820,-500.0,0.00062499,120]
[340819614,1729876240830,-833.34,0.00062499,120]
[340819615,1729876240839,-500.0,0.00062499,120]
[340819616,1729876240849,-500.0,0.00062499,120]
[340819617,1729876240858,-500.0,0.00062499,120]
[340819618,1729876240867,-1000.0,0.00062499,120]
[340819619,1729876240878,-1026.05,0.00062499,4]
[340819620,1729876240890,-500.0,0.00062499,120]
[340819621,1729876240900,-500.0,0.00062499,120]
[340819622,1729876240910,-599.19,0.00062499,120]
[340819623,1729876240919,-500.0,0.00062499,120]
[340819624,1729876240929,-500.0,0.00062499,120]
[340819625,1729876240938,-1319.24,0.00062499,120]
[340819626,1729876240947,-252241.78252264,0.000625,120]
[340819627,1729876240957,-938.55701392,0.000625,15]
[340819628,1729876240967,-500.0,0.000625,120]
[340819629,1729876240978,-17185.94,0.00062501,120]
[340819630,1729876240987,-812.69,0.00062501,120]
[340819631,1729876240997,-296.47261754,0.00062501,21]
[340819632,1729876241012,-203.52738246,0.00062501,21]
[340819633,1729876241022,-3010.28,0.00062501,120]
[340819634,1729876241031,-500.0,0.00062501,120]
[340819635,1729876241041,-500.66358798,0.00062501,120]
[340819636,1729876241053,-875.29641202,0.00062501,120]
[340819637,1729876241062,-500.0,0.00062501,120]
[340819638,1729876241071,-500.0,0.00062501,120]
[340819639,1729876241081,-500.0,0.00062501,120]
[340819640,1729876241090,-735.45,0.00062501,120]
[340819641,1729876241099,-706.84,0.00062501,120]
[340819642,1729876241109,-500.0,0.00062501,120]
[340819643,1729876241118,-606.29,0.00062501,120]
[340819644,1729876241128,-600.17,0.00062501,120]
[340819645,1729876241139,-1319.24,0.00062501,120]
[340819646,1729876241149,-724.03,0.00062502,120]
[340819647,1729876241159,-500.0,0.00062502,120]
[340819648,1729876241168,-500.0,0.00062502,120]
[340819649,1729876241178,-500.0,0.00062502,120]
[340819650,1729876241187,-570.97,0.00062502,120]
[340819651,1729876241197,-500.0,0.00062502,120]
[340819652,1729876241207,-20050.9060158,0.00062502,3]
[340819653,1729876241217,-500.0,0.00062502,120]
[340819654,1729876241226,-500.0,0.00062502,120]
[340819655,1729876241236,-500.0,0.00062502,120]
[340819656,1729876241245,-549.25,0.00062502,120]
[340819657,1729876241255,-500.0,0.00062502,2]
[340819658,1729876241264,-191.59812458,0.00062502,55]
[340819659,1729876241314,-500.0,0.0006248,120]
[340819660,1729876241323,-308.40187542,0.00062502,55]
[340819661,1729876241333,-500.0,0.00062502,120]
[340819662,1729876241342,-500.0,0.00062502,120]
[340819663,1729876241351,-500.0,0.00062502,120]
[340819664,1729876241360,-355.8391789,0.00062502,120]
[340819665,1729876241369,-994.84,0.00062502,120]
[340819666,1729876241378,-836.5734778,0.00062502,3]
[340819667,1729876241388,-692.7,0.00062502,120]
[340819668,1729876241397,-4269.1153215,0.00062502,3]
[340819669,1729876241406,-558.0,0.00062502,120]
[340819670,1729876241415,-500.0,0.00062502,120]
[340819671,1729876241424,-111744.0024696,0.00062502,3]
[340819672,1729876241433,-582.02,0.00062502,120]
[340819673,1729876241442,-579.96,0.00062502,120]
[340819674,1729876241451,-500.0,0.00062502,120]
[340819675,1729876241460,-925.88,0.00062502,120]
[340819676,1729876241469,-500.0,0.00062502,120]
[340819677,1729876241478,-519.16,0.00062502,120]
[340819678,1729876241487,-500.0,0.00062502,120]
[340819679,1729876241496,-833.34,0.00062502,120]
[340819680,1729876241505,-426.0128346,0.00062502,120]
[340819681,1729876241514,-500.0,0.00062502,120]
[340819682,1729876241523,-500.0,0.00062502,120]
[340819683,1729876241532,-1000.0,0.00062502,120]
[340819684,1729876241541,-1026.05,0.00062502,4]
[340819685,1729876241550,-500.0,0.00062502,120]
[340819686,1729876241559,-599.19,0.00062502,120]
[340819687,1729876241570,-500.0,0.00062502,120]
[340819688,1729876241579,-167.31,0.00062544,2]
[340819689,1729876241588,-2051.66,0.00062555,120]
[340819690,1729876241597,-500.0,0.00062555,120]
[340819691,1729876241606,-496.10214628,0.00062555,120]
[340819692,1729876241618,-3.89785372,0.00062555,120]
[340819693,1729876241627,-250.04903667,0.00062555,120]
[340819694,1729876241639,-706.32096333,0.00062555,120]
[340819695,1729876241648,-559.24,0.00062555,120]
[340819696,1729876241657,-1177.8,0.00062555,120]
[340819697,1729876241666,-699.36,0.00062555,120]
[340819698,1729876241675,-1000.0,0.00062558,120]
[340819699,1729876241685,-500.0,0.00062572,120]
[340819700,1729876241694,-158.9,0.00062573,2]
[340819701,1729876241704,-878.31588388,0.000626,2]
[340819702,1729876241715,-261.2866,0.000626,2]
[340819706,1729876243270,-124.383557,0.0006248,120]
[340819707,1729876243421,-375.616443,0.0006248,120]
[340819708,1729876243431,-500.0,0.00062487,120]
[340819709,1729876243441,-831.36721654,0.000626,2]
[340819710,1729876243450,-559.45,0.0006263,120]
[340819711,1729876243459,-1430.01,0.00062688,120]
[340819712,1729876243468,-500.0,0.00062688,120]
[340819713,1729876243477,-515.75,0.00062688,120]
[340819714,1729876243487,-724.03,0.00062699,120]
[340819715,1729876243496,-500.0,0.00062699,120]
[340819716,1729876243505,-38.75361576,0.00062699,120]
[340819717,1729876243516,-461.24638424,0.00062699,120]
[340819718,1729876243525,-500.0,0.00062699,120]
[340819719,1729876243534,-570.97,0.00062699,120]
[340819720,1729876243543,-500.0,0.00062699,120]
[340819721,1729876243553,-427.56731664,0.00062699,120]
[340819722,1729876243565,-72.43268336,0.00062699,120]
[340819723,1729876243575,-500.0,0.00062699,120]
[340819724,1729876243584,-500.0,0.00062699,120]
[340819725,1729876243594,-549.25,0.00062699,120]
[340819726,1729876243603,-500.0,0.00062699,2]
[340819727,1729876243613,-500.0,0.00062699,55]
[340819728,1729876243622,-500.0,0.00062699,120]
[340819729,1729876243631,-500.0,0.00062699,120]
[340819730,1729876243642,-218.22894424,0.00062699,120]
[340819739,1729876246228,-281.77105576,0.00062699,120]
[340819740,1729876246239,-994.84,0.00062699,120]
[340819741,1729876246249,-692.7,0.00062699,120]
[340819742,1729876246258,-558.0,0.00062699,120]
[340819743,1729876246268,-324.08072709,0.00062699,120]
[340819744,1729876246394,-175.91927291,0.00062699,120]
[340819745,1729876246404,-582.02,0.00062699,120]
[340819746,1729876246414,-579.96,0.00062699,120]
[340819747,1729876246423,-500.0,0.00062699,120]
[340819748,1729876246433,-925.88,0.00062699,120]
[340819749,1729876246443,-500.0,0.00062699,120]
[340819750,1729876246453,-519.16,0.00062699,120]
[340819751,1729876246462,-500.0,0.00062699,120]
[340819752,1729876246472,-833.34,0.00062699,120]
[340819753,1729876246482,-160.18,0.00062699,120]
[340819754,1729876246492,-500.0,0.00062699,120]
[340819755,1729876246501,-1000.0,0.00062699,120]
[340819756,1729876246511,-1026.05,0.00062699,4]
[340819757,1729876246520,-500.0,0.00062699,120]
[340819758,1729876246530,-599.19,0.00062699,120]
[340819759,1729876246539,-500.0,0.00062699,120]
[340819760,1729876246549,-500.0,0.00062699,120]
[340819761,1729876246559,-29225.05551061,0.000627,59]
[340819762,1729876246574,-1319.01696474,0.000627,59]
[340819872,1729877432307,-13787.00288018,0.000264,2]
[340819873,1729877432317,-11133.53485555,0.00027,2]
[340819874,1729877432326,-409.06985028,0.00027,2]
[340819875,1729877432337,-3000.0,0.00027,2]
[340819876,1729877432346,-982.52029672,0.00027,2]
[340819877,1729877432355,-190.84233029,0.000275,2]
[340819878,1729877432366,-13377.94940458,0.000275,2]
[340819879,1729877432376,-3369.00211279,0.00028,2]
[340819880,1729877432386,-56684.31624483,0.000299,2]
[340819881,1729877432396,-225.4544941,0.0002999,2]
[340819882,1729877432406,-10658.15408374,0.0003,2]
[340819883,1729877432416,-15323.59648676,0.0003,2]
[340819884,1729877432425,-1724.10997767,0.0003,2]
[340819885,1729877432434,-1011.727114,0.0003,2]
[340819886,1729877432443,-4577.34791798,0.000328,2]
[340819887,1729877432455,-1001.24811981,0.00033,2]
[340819888,1729877432464,-24717.7634658,0.00033,2]
[340819889,1729877432473,-1149.55528012,0.000335,2]
[340819890,1729877432483,-1175.83317885,0.00036,2]
[340819891,1729877432492,-629.98009599,0.00036,2]
[340819892,1729877432501,-4130.30495493,0.0003759,2]
[340819893,1729877432510,-165.41776816,0.000378,2]
[340819894,1729877432519,-35931.69174735,0.000379,2]
[340819895,1729877432528,-570.0,0.00042,3]
[340819896,1729877432537,-202.94291607,0.00042953,15]
[340819897,1729877432546,-369.17788341,0.00042953,2]
[340819898,1729877432555,-296.95885955,0.00043043,2]
[340819899,1729877432566,-12438.94484271,0.00043053,2]
[340819900,1729877432575,-5161.22585775,0.00043053,2]
[340819901,1729877432586,-4017.4778136,0.00043053,2]
[340819902,1729877432595,-5215.58527515,0.00043053,4]
[340819903,1729877432604,-19445.25208698,0.00043053,2]
[340819904,1729877432613,-8139.56387907,0.00043053,2]
[340819905,1729877432622,-18498.37564518,0.00043053,5]
[340819906,1729877432631,-563.38622521,0.00043053,2]
[340819907,1729877432641,-1806.30415741,0.00043053,2]
[340819908,1729877432651,-3189.97224687,0.00043053,2]
[340819909,1729877432661,-172.4911296,0.00043053,2]
[340819910,1729877432670,-575.46262842,0.00043053,2]
[340819911,1729877432679,-30716.51157608,0.00043053,4]
[340819912,1729877432688,-6970.11247109,0.00043053,2]
[340819913,1729877432698,-550.0,0.00043053,2]
[340819914,1729877432707,-1442.28231661,0.00043053,2]
[340819915,1729877432717,-991.25606843,0.00043053,2]
[340819916,1729877432726,-938.64448507,0.00043053,2]
[340819917,1729877432735,-10530.17385338,0.00043053,2]
[340819918,1729877432745,-115878.78213553,0.00043053,2]
[340819919,1729877432757,-16988.000001,0.00043053,2]
[340819920,1729877432768,-32967.30729275,0.00043053,2]
[340819921,1729877432782,-760.420697,0.00043053,2]
[340819922,1729877432791,-1071.43029478,0.00043053,2]
[340819923,1729877432802,-1316.66,0.00043053,2]
[340819932,1729877438407,-395.222,0.00043053,2]
[340819933,1729877438607,-674.06,0.00043053,2]
[340819934,1729877438619,-11245.32889011,0.00043053,2]
[340819935,1729877438628,-170.84230137,0.00043053,2]
[340819936,1729877438637,-1255.32086227,0.00043053,4]
[340819937,1729877438646,-6000.0,0.00043053,2]
[340819938,1729877438655,-958.20570001,0.00043053,4]
[340819939,1729877438664,-1016.14252073,0.00043053,2]
[340819940,1729877438673,-4744.53903414,0.00043053,2]
[340819941,1729877438682,-14386.73931433,0.00043053,2]
[340819942,1729877438691,-553.8550383,0.00043053,2]
[340819943,1729877438700,-150.0,0.00043053,2]
[340819944,1729877438709,-1502.92567968,0.00043053,2]
[340819945,1729877438718,-208544.58928273,0.00043053,2]
[340819946,1729877438727,-616.10021296,0.00043053,2]
[340819947,1729877438736,-211.20346253,0.00043053,2]
[340819948,1729877438745,-136888.08046963,0.00043053,2]
[340819950,1729877438755,-442.19199442,0.00043053,2]
[340819951,1729877438763,-1049.66596016,0.00043053,2]
[340819952,1729877438772,-2500.0,0.00043053,2]
[340819953,1729877438781,-569.87843868,0.00043053,2]
[340819955,1729877438790,-2339.84039201,0.00043053,2]
[340819957,1729877438799,-530.14778099,0.00043053,2]
[340819959,1729877438808,-81943.38176771,0.00043053,2]
[340820105,1729877440319,-2328.89999995,0.00043053,2]
[340820112,1729877440381,-2946.68335152,0.00043053,2]
[340820114,1729877440392,-1399.79399091,0.00043053,2]
[340820117,1729877440405,-256.34499998,0.00043053,2]
[340820122,1729877440449,-331.03186774,0.00043053,2]
[340820124,1729877440460,-398.62975953,0.00043053,2]
[340820126,1729877440471,-923.24735375,0.00043053,2]
[340820128,1729877440482,-3593.47834983,0.00043053,2]
[340820130,1729877440493,-1746.3324078,0.00043053,2]
[340820132,1729877440504,-4170.03465609,0.00043053,2]
[340820134,1729877440515,-10400.0,0.00043053,2]
[340820137,1729877440527,-566.84138598,0.00043053,2]
[340820139,1729877440539,-2740.20389715,0.00043053,2]
[340820141,1729877440550,-67456.33568172,0.00043053,2]
[340820143,1729877440561,-300.060222,0.00043053,2]
[340820158,1729877440694,-2161.93590095,0.00043053,2]
[340820248,1729877443391,-351.56478655,0.00043053,2]
[340820249,1729877443403,-17709.1980119,0.00043053,2]
[340820250,1729877443448,-8530.51060625,0.00043053,2]
[340820251,1729877443561,-10132.479508,0.00043053,2]
[340820257,1729877446381,-1793.931472,0.00043053,2]
[340820265,1729877784747,85.82,0.00015342,2]
[340820266,1729877784775,73.03,0.00015342,2]
[340820267,1729878024746,150.04956698,0.0001726,2]
[340820269,1729878556225,-475.63,0.000417,2]
[340820270,1729878556249,-2161.94,0.00042652,7]
[340820271,1729878556270,-203.22990964,0.00042945,15]
[340820279,1729878631659,-328.4348001,0.00042852,2]
[340820280,1729878631670,-97.88484765,0.00042852,2]
[340820281,1729878631680,-1392.9984186,0.00042945,15]
[340820282,1729878631690,-1000.0,0.00042945,15]
[340820283,1729878631699,-164.642,0.00042952,66]
[340820284,1729878631709,-202.94291607,0.00042953,15]
[340820285,1729878631718,-421.77993276,0.00043008,2]
[340820286,1729878631727,-467.20579614,0.00043038,2]
[340820287,1729878631738,-1394.81328479,0.00043038,2]
[340820288,1729878635321,-256.08097458,0.00043038,2]
[340820289,1729878635332,-402.2181785,0.00043038,2]
[340820298,1729878637744,-178535.61623778,0.00043038,2]
[340820299,1729878637754,-897.44773935,0.00043038,2]
[340820300,1729878637763,-473.76079233,0.00043038,2]
[340820301,1729878637774,-320.46479908,0.00043038,2]
[340820302,1729878637783,-538.67576314,0.00043038,2]
[340820303,1729878637794,-358.67537111,0.00043038,2]
[340820304,1729878637803,-278.93212341,0.00043038,2]
[340820305,1729878637812,-572.81998345,0.00043038,2]
[340820306,1729878637821,-6629.42920949,0.00043038,4]
[340820307,1729878637831,-5088.21867099,0.00043038,4]
[340820308,1729878637840,-1018.05894923,0.00043038,2]
[340820309,1729878637849,-216.63371142,0.00043038,2]
[340820310,1729878637858,-209.42433083,0.00043038,2]
[340820311,1729878637868,-515.45856071,0.00043038,14]
[340820312,1729878637877,-1039.0,0.00043038,2]
[340820313,1729878637886,-1406.61208093,0.00043038,2]
[340820314,1729878637895,-8745.48095856,0.00043043,9]
[340820315,1729878637904,-299.99,0.00043045,120]
[340820316,1729878637913,-151.0,0.00043053,14]
[340820317,1729878637922,-5000.0,0.00043053,14]
[340820318,1729878637933,-5000.0,0.00043053,14]